bitfinex-derivatives/quotes_SOLF0:USTF0_20260117
["timestamp","ask_amount","ask_price","bid_price","bid_amount"]
[1768642640726,3.22663496,144.49,144.44,0.97907487]
[1768642643521,3.22663496,144.49,144.43,6.2332]
[1768642646727,3.22663496,144.49,144.43,7.2133786]
[1768642652824,11.14279119,144.51,144.44,0.97979762]
[1768642653027,3.19466634,144.5,144.44,0.97979762]
[1768642653828,3.19466634,144.52,144.44,0.97979762]
[1768642654022,3.19466634,144.52,144.46,7.21179762]
[1768642660940,3.19466634,144.52,144.47,0.97979762]
[1768642661139,3.19466634,144.55,144.48,0.97979762]
[1768642661537,1.71802485,144.54,144.46,0.97979762]
[1768642661739,3.19466634,144.55,144.46,0.97979762]
[1768642661939,3.19466634,144.55,144.48,0.97979762]
[1768642662539,4.91269119,144.55,144.48,0.97979762]
[1768642662942,3.19466634,144.55,144.48,0.97979762]
[1768642668049,3.19466634,144.55,144.47,6.2315]
[1768642668249,3.19466634,144.53,144.47,6.2315]
[1768642672051,3.19466634,144.53,144.47,7.21077245]
[1768642673358,3.19466634,144.53,144.45,0.97927245]
[1768642674762,3.19466634,144.53,144.46,6.2321]
[1768642674965,3.19466634,144.53,144.46,7.21137245]
[1768642685073,9.42416634,144.53,144.46,0.97927245]
[1768642685972,3.18252905,144.52,144.46,0.97927245]
[1768642686573,3.18252905,144.51,144.44,7.21237245]
[1768642686773,3.18252905,144.51,144.44,8.92978981]
[1768642687775,3.18252905,144.5,144.44,8.92978981]
[1768642687974,3.18252905,144.5,144.44,7.21237245]
[1768642689873,3.18252905,144.5,144.45,7.21177245]
[1768642690476,3.18252905,144.52,144.47,0.97927245]
[1768642693470,3.18252905,144.52,144.46,6.2321]
[1768642695686,3.18252905,144.52,144.46,7.21137245]
[1768642697384,3.18252905,144.51,144.46,0.97927245]
[1768642698282,3.18252905,144.5,144.44,8.92968981]
[1768642698475,3.18252905,144.5,144.44,7.21227245]
[1768642700988,3.18252905,144.53,144.46,0.97927245]
[1768642701288,3.18252905,144.52,144.46,0.97927245]
[1768642708297,3.18252905,144.52,144.45,6.2324]
[1768642713806,3.18252905,144.52,144.45,7.21205585]
[1768642726415,3.18252905,144.52,144.46,6.2321]
[1768642736024,3.18252905,144.52,144.46,7.21335594]
[1768642745029,3.18252905,144.52,144.47,0.98125594]
[1768642745229,4.96948334,144.53,144.47,0.98125594]
[1768642747230,3.25166038,144.52,144.47,0.98125594]
[1768642747428,3.25166038,144.52,144.45,0.98125594]
[1768642750430,3.25166038,144.51,144.45,0.98125594]
[1768642759749,3.25166038,144.51,144.43,0.98125594]
[1768642759750,3.25166038,144.5,144.43,0.98125594]
[1768642763950,9.48226038,144.5,144.43,0.98125594]
[1768642764750,3.20440102,144.49,144.43,0.98125594]
[1768642766151,3.20440102,144.49,144.43,7.21475594]
[1768642776957,3.20440102,144.49,144.43,0.98125594]
[1768642792071,9.27830022,144.5,144.43,0.98125594]
[1768642798774,3.04770022,144.49,144.43,0.98125594]
[1768642801787,9.27870022,144.49,144.43,0.98125594]
[1768642802183,3.04770022,144.49,144.43,7.21465594]
[1768642802481,1.71806974,144.52,144.44,0.98048393]
[1768642802783,3.04770022,144.51,144.45,0.98048393]
[1768642823310,3.04770022,144.51,144.44,6.233]
[1768642824811,3.04770022,144.51,144.44,7.21319839]
[1768642825412,3.04770022,144.51,144.45,0.98019839]
[1768642825712,4.92586576,144.53,144.45,0.98019839]
[1768642826111,3.20779602,144.52,144.45,0.98019839]
[1768642826812,3.20779602,144.52,144.46,6.2322]
[1768642827212,3.20779602,144.52,144.46,7.21239839]
[1768642833217,3.20779602,144.52,144.47,6.2317]
[1768642836325,4.95693159,144.54,144.47,7.21247934]
[1768642836619,4.95693159,144.54,144.48,7.21197934]
[1768642844024,3.23886185,144.54,144.48,7.21197934]
[1768642844325,4.95693159,144.54,144.48,7.21197934]
[1768642845925,3.23886185,144.54,144.48,7.21197934]
[1768642846126,4.95693159,144.54,144.48,7.21197934]
[1768642846425,4.95693159,144.54,144.49,0.98077934]
[1768642848817,4.95693159,144.54,144.48,6.2312]
[1768642849226,4.95693159,144.54,144.48,7.21197934]
[1768642851831,4.95693159,144.54,144.49,0.98028174]
[1768642854838,3.23886185,144.54,144.49,0.98028174]
[1768642858042,3.23886185,144.54,144.49,7.21108174]
[1768642867550,3.23886185,144.54,144.49,6.2308]
[1768642869653,4.95607508,144.54,144.49,6.2308]
[1768642873463,3.12056828,144.53,144.47,7.21178174]
[1768642874358,118.20119042,144.56,144.45,7.21268174]
[1768642874359,3.12056828,144.51,144.45,7.21268174]
[1768642880362,4.83778151,144.51,144.45,7.21268174]
[1768642886667,3.12056828,144.51,144.45,7.21268174]
[1768642896971,3.12056828,144.51,144.46,0.98054472]
[1768642904578,3.12056828,144.51,144.46,7.21274472]
[1768642910278,3.12056828,144.51,144.44,8.93045795]
[1768642910482,4.83778151,144.51,144.44,7.21324472]
[1768642911484,3.12056828,144.51,144.44,7.21324472]
[1768642911682,4.83778151,144.51,144.44,7.21324472]
[1768642913784,4.83778151,144.51,144.45,6.2327]
[1768642914376,3.2778554,144.5,144.45,6.2327]
[1768642915774,3.2778554,144.5,144.44,0.98054472]
[1768642916179,3.2778554,144.5,144.43,6.2333]
[1768642917287,3.2778554,144.49,144.43,7.21411133]
[1768642921288,3.2778554,144.49,144.43,0.98081133]
[1768642926288,3.2778554,144.49,144.43,7.21431133]
[1768642936906,3.2778554,144.49,144.43,0.98081133]
[1768642939509,9.5088554,144.49,144.43,0.98081133]
[1768642943211,3.12071024,144.48,144.43,0.98081133]
[1768642949917,3.12071024,144.48,144.43,7.21431133]
[1768642958920,3.12071024,144.48,144.43,0.98081133]
[1768642964833,3.02670118,144.54,144.44,0.98219601]
[1768642965018,3.02670118,144.56,144.48,0.98219601]
[1768642965322,3.02670118,144.56,144.49,0.98219601]
[1768642965921,3.02670118,144.55,144.49,0.98219601]
[1768642966620,3.02670118,144.54,144.49,0.98219601]
[1768642967220,3.02670118,144.56,144.49,0.98219601]
[1768642967621,3.02670118,144.55,144.49,0.98219601]
[1768642980031,1.71701246,144.56,144.5,2.42691951]
[1768642980227,1.71701246,144.56,144.51,2.42691951]
[1768642980424,1.71701246,144.56,144.52,2.42691951]
[1768642980625,1.71701246,144.56,144.49,0.98219601]
[1768642981125,7.94501246,144.56,144.49,0.98219601]
[1768642981731,6.2286,144.55,144.47,3.28424039]
[1768642981920,3.10803143,144.53,144.47,3.28424039]
[1768642982834,3.10803143,144.53,144.47,5.00125285]
[1768642983930,3.10803143,144.53,144.47,3.28424039]
[1768642984138,3.10803143,144.53,144.47,5.00125285]
[1768642988231,3.10803143,144.53,144.47,3.28424039]
[1768642988633,3.10803143,144.52,144.45,3.28424039]
[1768642988938,3.10803143,144.51,144.45,3.28424039]
[1768642998348,9.33813143,144.51,144.45,3.28424039]
[1768643000042,3.10803143,144.5,144.45,3.28424039]
[1768643002144,9.33883143,144.5,144.44,176.78157083]
[1768643002748,9.33883143,144.5,144.44,179.94889283]
[1768643009456,6.2308,144.5,144.45,3.167322]
[1768643009947,3.18380574,144.52,144.45,3.167322]
[1768643009948,9.41370574,144.52,144.45,3.167322]
[1768643010954,6.2301,144.51,144.45,3.167322]
[1768643012656,3.18380574,144.52,144.45,3.167322]
[1768643013447,9.41350574,144.52,144.45,3.167322]
[1768643014557,9.41350574,144.52,144.46,3.10350298]
[1768643021259,9.41350574,144.52,144.46,11.70692144]
[1768643021458,9.41350574,144.52,144.46,3.10350298]
[1768643022361,9.41350574,144.52,144.46,11.70692144]
[1768643023660,3.03735998,144.51,144.46,11.70692144]
[1768643023847,3.03735998,144.51,144.46,3.10350298]
[1768643027457,6.2297,144.52,144.46,3.10350298]
[1768643027660,3.03735998,144.53,144.47,3.10350298]
[1768643033265,9.26665998,144.53,144.47,3.10350298]
[1768643037267,9.26665998,144.53,144.47,11.70692144]
[1768643038968,3.16913861,144.54,144.48,9.27906324]
[1768643039177,1.71701246,144.58,144.49,11.6512817]
[1768643039470,1.71676864,144.58,144.5,3.04786324]
[1768643040271,6.228,144.56,144.5,3.04786324]
[1768643040970,7.94406864,144.58,144.5,3.04786324]
[1768643041177,3.16913861,144.57,144.51,3.04786324]
[1768643044577,3.16913861,144.57,144.51,9.27786324]
[1768643046673,3.16913861,144.57,144.52,3.04786324]
[1768643046876,3.16913861,144.58,144.52,4.76463188]
[1768643050278,3.16913861,144.58,144.52,3.04786324]
[1768643050780,3.16913861,144.6,144.54,3.04786324]
[1768643051875,3.16913861,144.6,144.54,9.27656324]
[1768643054783,3.16913861,144.6,144.55,6.2283]
[1768643055580,3.16913861,144.6,144.56,6.2278]
[1768643058084,3.16913861,144.63,144.57,9.27516324]
[1768643058383,3.16913861,144.63,144.57,6.2273]
[1768643058785,3.16913861,144.62,144.55,10.99263188]
[1768643066390,7.94166864,144.63,144.56,3.15877154]
[1768643066391,6.2249,144.63,144.56,3.15877154]
[1768643066579,3.13317506,144.62,144.57,3.15877154]
[1768643067177,3.13317506,144.62,144.55,1.71676864]
[1768643067582,3.13317506,144.62,144.55,4.87554018]
[1768643068394,3.13317506,144.62,144.56,3.15877154]
[1768643074899,9.35847506,144.62,144.56,3.15877154]
[1768643075194,3.01447255,144.61,144.56,3.15877154]
[1768643077701,6.2253,144.62,144.56,3.15877154]
[1768643079003,6.2259,144.61,144.56,3.15877154]
[1768643079202,3.01447255,144.62,144.56,3.15877154]
[1768643080294,99.83777255,144.65,144.56,3.15877154]
[1768643080492,1.71676864,144.63,144.56,3.15877154]
[1768643080697,4.73124119,144.63,144.56,3.15877154]
[1768643080897,3.01447255,144.62,144.56,3.15877154]
[1768643081907,6.2258,144.61,144.56,3.15877154]
[1768643082207,9.24027255,144.61,144.56,3.15877154]
[1768643095018,9.24027255,144.61,144.56,11.76219]
[1768643096316,6.2262,144.6,144.56,8.60341846]
[1768643096521,9.33473815,144.6,144.55,8.60341846]
[1768643098022,6.2262,144.6,144.55,11.89315877]
[1768643100624,3.10853815,144.58,144.54,8.60341846]
[1768643100922,3.10853815,144.58,144.53,8.60341846]
[1768643101121,9.33513815,144.6,144.54,11.89315877]
[1768643101922,6.2267,144.59,144.54,11.89315877]
[1768643102323,9.33523815,144.59,144.54,11.89315877]
[1768643103418,9.33523815,144.59,144.54,3.28974031]
[1768643103616,9.33523815,144.59,144.54,11.89315877]
[1768643105125,6.2267,144.59,144.55,3.28974031]
[1768643113938,6.2267,144.59,144.54,8.60341846]
[1768643114237,6.2267,144.59,144.53,11.89315877]
[1768643114435,6.2267,144.59,144.54,8.60341846]
[1768643115642,9.33523815,144.59,144.54,8.60341846]
[1768643116240,6.2271,144.58,144.54,8.60341846]
[1768643121047,3.10853815,144.59,144.54,8.60341846]
[1768643122844,3.10853815,144.59,144.53,11.89315877]
[1768643127946,9.33533815,144.59,144.53,11.89315877]
[1768643129454,7.94302797,144.58,144.53,3.28974031]
[1768643129654,10.934069,144.58,144.53,3.28974031]
[1768643131557,6.2276,144.57,144.53,3.28974031]
[1768643149768,9.24114954,144.57,144.52,8.60341846]
[1768643150260,9.24114954,144.57,144.52,11.6192141]
[1768643152674,9.35279828,144.59,144.53,3.00970087]
[1768643154085,9.35279828,144.59,144.53,11.61311933]
[1768643160375,9.35279828,144.59,144.54,3.00970087]
[1768643160679,9.35279828,144.59,144.54,11.61311933]
[1768643162069,3.12599828,144.59,144.54,11.61311933]
[1768643164382,6.2262,144.6,144.54,11.61311933]
[1768643164786,3.12599828,144.61,144.55,3.00970087]
[1768643165384,6.2262,144.6,144.55,3.00970087]
[1768643166094,3.12599828,144.61,144.55,3.00970087]
[1768643166387,4.84177125,144.6,144.55,3.00970087]
[1768643167785,11.06807125,144.6,144.55,3.00970087]
[1768643170598,11.06807125,144.6,144.53,17.84221933]
[1768643173902,11.06807125,144.6,144.53,11.61311933]
[1768643176506,3.12599828,144.59,144.53,11.61311933]
[1768643176905,9.35269828,144.59,144.53,11.61311933]
[1768643183105,6.2272,144.58,144.53,11.61311933]
[1768643184397,3.12599828,144.59,144.53,11.61311933]
[1768643185010,4.84177125,144.59,144.53,11.61311933]
[1768643185610,3.12599828,144.59,144.53,11.61311933]
[1768643185807,4.84177125,144.59,144.53,11.61311933]
[1768643187311,3.12599828,144.59,144.53,11.61311933]
[1768643193307,9.35279828,144.59,144.53,11.61311933]
[1768643193505,9.35279828,144.59,144.53,3.00970087]
[1768643197712,3.09661596,144.58,144.53,3.00970087]
[1768643205226,3.09661596,144.58,144.53,11.61311933]
[1768643212323,3.09661596,144.58,144.53,3.00970087]
[1768643213330,9.32371596,144.58,144.53,3.00970087]
[1768643217230,9.44817709,144.6,144.53,3.00970087]
[1768643217432,9.44817709,144.6,144.53,11.61311933]
[1768643218226,9.44817709,144.6,144.54,2.99145859]
[1768643220337,9.44817709,144.6,144.54,11.59487705]
[1768643222636,3.22177709,144.6,144.55,2.99145859]
[1768643223837,9.44737709,144.62,144.55,2.99145859]
[1768643224036,1.71567934,144.61,144.55,2.99145859]
[1768643224242,4.93745643,144.61,144.55,2.99145859]
[1768643226933,4.93745643,144.61,144.55,11.59487705]
[1768643227338,4.93745643,144.61,144.55,2.99145859]
[1768643229532,4.93745643,144.61,144.55,11.59487705]
[1768643229733,4.93745643,144.61,144.55,2.99145859]
[1768643230637,4.93745643,144.61,144.55,11.59487705]
[1768643231033,4.93745643,144.61,144.55,2.99145859]
[1768643238242,11.16325643,144.61,144.55,2.99145859]
[1768643240342,11.16325643,144.61,144.55,11.59487705]
[1768643240543,11.16325643,144.61,144.55,2.99145859]
[1768643247351,9.44757709,144.61,144.55,2.99145859]
[1768643247648,11.16325643,144.61,144.55,2.99145859]
[1768643253960,2.99795285,144.6,144.55,2.99145859]
[1768643260162,2.99795285,144.63,144.55,2.99145859]
[1768643260461,4.71363219,144.61,144.55,2.99145859]
[1768643261767,10.93963219,144.61,144.55,2.99145859]
[1768643266070,10.93963219,144.61,144.55,11.59487705]
[1768643267776,10.93963219,144.61,144.55,2.99145859]
[1768643270174,10.93963219,144.61,144.55,11.59487705]
[1768643270873,9.22395285,144.61,144.55,11.59487705]
[1768643271872,9.22395285,144.61,144.56,8.60341846]
[1768643272475,9.22395285,144.61,144.55,11.59487705]
[1768643277880,6.2263,144.6,144.55,11.59487705]
[1768643280076,6.2257,144.62,144.56,3.23444271]
[1768643280277,6.2257,144.62,144.57,3.23444271]
[1768643283282,6.2259,144.61,144.57,3.23444271]
[1768643285985,9.51451001,144.63,144.57,3.23444271]
[1768643286283,3.28921001,144.63,144.57,3.23444271]
[1768643288876,9.51351001,144.65,144.57,3.23444271]
[1768643289476,9.51351001,144.65,144.58,3.23444271]
[1768643290586,3.28921001,144.64,144.58,3.23444271]
[1768643291385,358.3583,144.69,144.58,3.23444271]
[1768643291386,16.14272337,144.72,144.64,3.23444271]
[1768643291687,16.14272337,144.72,144.65,3.23444271]
[1768643291885,6.2216,144.71,144.63,3.23444271]
[1768643293289,2.71517894,144.7,144.63,3.23444271]
[1768643295190,2.71517894,144.7,144.64,3.23444271]
[1768643299287,4.43013144,144.7,144.64,3.23444271]
[1768643299983,2.71517894,144.69,144.64,3.23444271]
[1768643300183,1.7149525,144.68,144.64,3.23444271]
[1768643300386,1.7149525,144.68,144.62,3.23444271]
[1768643300588,4.43013144,144.68,144.62,3.23444271]
[1768643300788,1.7149525,144.66,144.62,3.23444271]
[1768643301196,4.43013144,144.66,144.6,3.23444271]
[1768643301396,10.65403144,144.66,144.6,3.23444271]
[1768643307708,8.93907894,144.66,144.6,3.23444271]
[1768643308008,10.65403144,144.66,144.6,3.23444271]
[1768643314013,8.93907894,144.66,144.6,3.23444271]
[1768643314309,10.65403144,144.66,144.6,3.23444271]
[1768643315012,2.71381229,144.65,144.6,3.23444271]
[1768643317006,10.65286479,144.65,144.58,11.73503318]
[1768643317212,2.71381229,144.64,144.58,3.13161472]
[1768643317605,1.7149525,144.63,144.58,3.13161472]
[1768643319706,1.7149525,144.63,144.56,3.13161472]
[1768643319707,2.71381229,144.62,144.56,3.13161472]
[1768643321709,2.71381229,144.62,144.57,3.13161472]
[1768643324714,2.71381229,144.61,144.55,3.13161472]
[1768643333741,2.71381229,144.61,144.56,3.16560263]
[1768643346246,2.71381229,144.61,144.55,6.2282]
[1768643347449,2.71379347,144.6,144.54,19.71299388]
[1768643348652,2.71379347,144.6,144.55,3.16560263]
[1768643351158,2.71379347,144.6,144.54,16.54739125]
[1768643351356,2.71379347,144.6,144.54,11.10957542]
[1768643351858,2.71379347,144.6,144.54,9.39430263]
[1768643352155,2.71379347,144.6,144.54,6.2287]
[1768643356147,2.71379347,144.6,144.53,11.76902109]
[1768643356456,8.93999347,144.6,144.53,11.76902109]
[1768643357255,6.2267,144.59,144.53,11.76902109]
[1768643357461,8.94049347,144.59,144.53,11.76902109]
[1768643359267,8.94099347,144.58,144.53,11.76902109]
[1768643359558,8.94099347,144.58,144.53,8.60341846]
[1768643362056,8.94099347,144.58,144.54,8.60341846]
[1768643364366,6.2272,144.58,144.54,11.80322513]
[1768643383684,2.7201622,144.59,144.54,11.80322513]
[1768643384787,6.2274,144.58,144.54,11.80322513]
[1768643386284,8.9469622,144.59,144.54,11.80322513]
[1768643386588,109.2807,144.64,144.55,11.71180684]
[1768643386589,2.7201622,144.62,144.55,11.71180684]
[1768643387791,6.226,144.61,144.55,11.71180684]
[1768643389792,6.226,144.61,144.56,3.10838838]
[1768643391091,8.9461622,144.61,144.56,3.10838838]
[1768643399104,8.9461622,144.61,144.56,11.71180684]
[1768643409213,6.2262,144.6,144.56,11.71180684]
[1768643413913,6.2266,144.59,144.56,8.60341846]
[1768643414215,6.2266,144.59,144.55,8.60341846]
[1768643419726,6.2273,144.58,144.55,8.60341846]
[1768643432827,6.2273,144.58,144.54,0.28438427]
[1768643436931,6.2275,144.57,144.53,12.97685599]
[1768643438044,6.2275,144.57,144.53,16.05851396]
[1768643441334,3.21234174,144.58,144.53,4.482e-05]
[1768643442736,3.21234174,144.58,144.51,261.58]
[1768643442931,6.2283,144.56,144.51,261.58]
[1768643443431,6.2283,144.56,144.51,264.66165797]
[1768643448636,6.2284,144.55,144.51,264.66165797]
[1768643451626,3.10360634,144.56,144.47,3.18068277]
[1768643451834,3.10360634,144.56,144.48,3.18068277]
[1768643452427,96.8853,144.56,144.48,3.18068277]
[1768643452633,3.10360634,144.54,144.48,3.18068277]
[1768643453838,6.2296,144.53,144.48,3.18068277]
[1768643454735,6.2297,144.52,144.48,3.18068277]
[1768643460635,9.33280634,144.54,144.48,3.18068277]
[1768643461744,6.2292,144.53,144.48,3.18068277]
[1768643466235,6.2292,144.53,144.46,13.47430105]
[1768643466236,3.10360634,144.52,144.46,13.47430105]
[1768643466548,3.10360634,144.52,144.47,3.18068277]
[1768643467651,9.33330634,144.52,144.47,3.18068277]
[1768643468148,9.33330634,144.52,144.45,273.35701643]
[1768643468351,9.33330634,144.52,144.45,264.78068277]
[1768643468545,9.33330634,144.52,144.45,3.18068277]
[1768643468745,9.33330634,144.52,144.45,9.41328277]
[1768643468949,9.33330634,144.52,144.46,3.18068277]
[1768643476659,3.10360634,144.51,144.46,3.18068277]
[1768643479766,9.33380634,144.51,144.46,3.18068277]
[1768643486271,3.2454213,144.56,144.49,3.28650825]
[1768643486665,3.2454213,144.56,144.49,5.00379287]
[1768643487570,3.2454213,144.55,144.49,3.28650825]
[1768643488968,9.4742213,144.54,144.49,3.28650825]
[1768643490176,9.4746213,144.53,144.47,11.86284191]
[1768643490480,3.2454213,144.52,144.47,3.28650825]
[1768643490976,9.4751213,144.52,144.47,3.28650825]
[1768643495276,9.4751213,144.52,144.47,11.86284191]
[1768643495974,2.96805283,144.54,144.48,3.01202854]
[1768643496568,2.96805283,144.54,144.48,4.72931316]
[1768643496777,9.19685283,144.54,144.48,4.72931316]
[1768643497580,9.19685283,144.54,144.48,13.30564682]
[1768643501779,9.19685283,144.54,144.48,11.5883622]
[1768643503889,6.2293,144.53,144.48,11.5883622]
[1768643504690,9.19735283,144.53,144.48,11.5883622]
[1768643507890,9.19735283,144.53,144.49,8.57633366]
[1768643508092,9.19735283,144.53,144.48,11.5883622]
[1768643510188,9.19735283,144.53,144.48,3.01202854]
[1768643513389,9.39497558,144.52,144.45,264.76523846]
[1768643513594,9.39497558,144.52,144.46,3.06523846]
[1768643516900,9.39497558,144.52,144.46,9.29743846]
[1768643520005,3.16527558,144.52,144.46,9.29743846]
[1768643521607,6.2301,144.51,144.46,3.06523846]
[1768643521902,3.16527558,144.5,144.45,263.41728462]
[1768643522101,3.16527558,144.5,144.45,261.7]
[1768643532819,3.16527558,144.5,144.45,264.76523846]
[1768643534019,3.16527558,144.5,144.45,3.06523846]
[1768643534219,9.39577558,144.5,144.45,3.06523846]
[1768643536317,6.231,144.49,144.45,3.06523846]
[1768643541921,6.231,144.49,144.43,498.74073921]
[1768643542116,9.47412687,144.49,144.44,3.06705405]
[1768643548025,3.24312687,144.49,144.43,232.23587896]
[1768643549131,9.47502687,144.47,144.42,266.52486025]
[1768643550427,9.47502687,144.47,144.42,264.80705405]
[1768643550633,9.47502687,144.47,144.42,266.52486025]
[1768643552131,3.24312687,144.47,144.42,266.52486025]
[1768643557738,9.46009273,144.49,144.42,266.52486025]
[1768643559734,6.2315,144.48,144.42,264.80705405]
[1768643559934,6.2315,144.48,144.42,266.52486025]
[1768643562940,6.2318,144.47,144.42,266.52486025]
[1768643564037,6.2313,144.49,144.45,3.22174361]
[1768643564943,3.22869273,144.51,144.45,3.22174361]
[1768643565841,6.2305,144.5,144.45,3.22174361]
[1768643566043,3.22869273,144.51,144.45,3.22174361]
[1768643566842,6.231,144.49,144.45,3.22174361]
[1768643568547,3.22869273,144.51,144.45,3.22174361]
[1768643568548,6.2314,144.48,144.45,3.22174361]
[1768643571948,9.45889273,144.51,144.45,3.22174361]
[1768643592757,9.4688534,144.5,144.45,3.22174361]
[1768643592960,9.4688534,144.5,144.43,3.0930605]
[1768643593361,3.2382534,144.49,144.43,3.0930605]
[1768643593760,3.2382534,144.49,144.43,9.3265605]
[1768643595575,3.2382534,144.48,144.43,3.0930605]
[1768643595868,3.2382534,144.48,144.42,261.74]
[1768643596964,3.2382534,144.47,144.42,261.74]
[1768643597566,3.2382534,144.47,144.41,9.3270605]
[1768643605571,3.2382534,144.47,144.42,3.02145823]
[1768643608370,6.2306,144.5,144.44,3.02145823]
[1768643608574,3.12319326,144.52,144.45,3.02145823]
[1768643609366,3.12319326,144.52,144.45,9.25405823]
[1768643609563,3.12319326,144.52,144.47,3.02145823]
[1768643611764,3.12319326,144.52,144.47,9.25325823]
[1768643612972,6.2288,144.54,144.47,9.25325823]
[1768643613168,9.21314944,144.54,144.48,2.97443405]
[1768643614374,2.98434944,144.54,144.48,9.20563405]
[1768643619182,2.98434944,144.54,144.49,6.2309]
[1768643639505,4.70205427,144.54,144.49,6.2309]
[1768643639803,3.26712121,144.53,144.49,6.2309]
[1768643640208,3.26712121,144.53,144.48,2.97443405]
[1768643641893,3.26712121,144.53,144.49,6.2309]
[1768643646907,3.26712121,144.53,144.48,2.97443405]
[1768643687048,3.26712121,144.53,144.48,9.20583405]
[1768643715784,6.2288,144.54,144.48,9.20583405]
[1768643715981,9.49067751,144.54,144.48,9.20583405]
[1768643718686,9.49067751,144.54,144.49,3.0963594]
[1768643719585,3.26187751,144.54,144.49,3.0963594]
[1768643726702,9.36955843,144.55,144.49,3.0963594]
[1768643731395,3.14115843,144.54,144.49,3.0963594]
[1768643740908,6.2284,144.55,144.49,3.0963594]
[1768643742109,9.42903374,144.55,144.49,3.0963594]
[1768643750819,3.20063374,144.54,144.49,3.0963594]
[1768643753318,3.2003436,144.56,144.5,3.03548775]
[1768643754823,3.2003436,144.56,144.5,9.26598775]
[1768643756414,3.2003436,144.56,144.5,3.03548775]
[1768643756620,1.71710327,144.55,144.5,3.03548775]
[1768643757324,4.91744687,144.55,144.5,3.03548775]
[1768643769340,3.2003436,144.55,144.5,3.03548775]
[1768643790455,3.2003436,144.55,144.48,3.27016219]
[1768643791957,3.04878857,144.54,144.48,3.27016219]
[1768643792861,3.04878857,144.54,144.48,9.50156219]
[1768643794357,3.04878857,144.53,144.48,3.27016219]
[1768643796868,3.04878857,144.53,144.48,9.50156219]
[1768643799572,3.04878857,144.55,144.48,3.27016219]
[1768643800772,3.04878857,144.55,144.5,6.2305]
[1768643805675,3.04878857,144.55,144.49,3.0270312]
[1768643806877,3.04878857,144.55,144.49,9.2579312]
[1768643817483,3.04878857,144.55,144.49,3.0270312]
[1768643820384,3.15502398,144.54,144.49,3.0270312]
[1768643822986,9.38392398,144.54,144.49,3.0270312]
[1768643823784,3.15502398,144.53,144.47,3.26473899]
[1768643825989,9.38452398,144.53,144.47,3.26473899]
[1768643829990,3.15502398,144.53,144.47,3.26473899]
[1768643835804,9.38422398,144.53,144.47,3.26473899]
[1768643838912,9.38512398,144.51,144.45,16.13320632]
[1768643839103,9.38512398,144.51,144.45,3.26473899]
[1768643844917,3.15502398,144.51,144.45,3.26473899]
[1768643845212,3.15502398,144.51,144.45,11.2146246]
[1768643845708,3.11960018,144.54,144.47,3.08956078]
[1768643845914,3.11960018,144.54,144.47,4.80704639]
[1768643846311,3.11960018,144.54,144.47,3.08956078]
[1768643846508,3.11960018,144.54,144.47,4.80704639]
[1768643846709,3.11960018,144.54,144.47,3.08956078]
[1768643847013,3.11960018,144.54,144.47,11.03874639]
[1768643847716,3.11960018,144.54,144.48,6.2313]
[1768643847913,3.11960018,144.54,144.48,9.32086078]
[1768643849519,3.11960018,144.54,144.49,3.08956078]
[1768643853217,3.11960018,144.54,144.49,9.32036078]
[1768643854014,3.11960018,144.54,144.49,3.08956078]
[1768643869026,3.11960018,144.54,144.48,9.27106887]
[1768643883754,3.11960018,144.54,144.49,3.0075108]
[1768643898460,9.34840018,144.54,144.49,3.0075108]
[1768643942600,3.11960018,144.54,144.49,3.0075108]
[1768643953009,9.34850018,144.54,144.49,3.0075108]
[1768643955213,3.19312936,144.53,144.47,24.03344053]
[1768643955413,3.19312936,144.53,144.47,11.1649732]
[1768643955712,3.19312936,144.53,144.47,24.03344053]
[1768643957314,3.19312936,144.53,144.47,11.1649732]
[1768643958317,3.19312936,144.53,144.47,9.44798195]
[1768643958614,3.19312936,144.53,144.47,3.21638195]
[1768643958817,3.19312936,144.52,144.47,3.21638195]
[1768643967829,3.19312936,144.52,144.46,161.89424179]
[1768643968034,9.42282936,144.52,144.46,161.89424179]
[1768643972240,9.42282936,144.52,144.46,155.66214179]
[1768643972436,9.42282936,144.52,144.45,4.93014772]
[1768643972437,9.51388666,144.51,144.45,17.79861505]
[1768643979338,9.51428666,144.5,144.45,16.0816238]
[1768643979540,9.51428666,144.5,144.45,17.79861505]
[1768643984647,9.51428666,144.5,144.45,4.93014772]
[1768643984850,9.51428666,144.5,144.45,17.79861505]
[1768643985247,9.51428666,144.5,144.45,4.93014772]
[1768643992156,9.51428666,144.5,144.45,3.21315647]
[1768643998863,9.51428666,144.5,144.44,11.08271705]
[1768644001259,3.09773671,144.53,144.45,3.1330258]
[1768644002768,9.32783671,144.51,144.45,3.1330258]
[1768644004170,9.32783671,144.51,144.46,1.71699125]
[1768644004865,43.26983098,144.8,144.48,1.71699125]
[1768644004866,3.09773671,144.54,144.48,1.71699125]
[1768644005065,3.09773671,144.54,144.48,4.85001705]
[1768644007675,3.09773671,144.54,144.49,3.1330258]
[1768644009271,3.09773671,144.56,144.49,3.1330258]
[1768644009471,4.81472796,144.56,144.49,3.1330258]
[1768644009876,3.09773671,144.55,144.49,3.1330258]
[1768644010478,3.09773671,144.55,144.49,9.3638258]